bitfinex-derivatives/quotes_SOLF0:USTF0_20240912
["timestamp","ask_amount","ask_price","bid_price","bid_amount"]
[1726147170337,3.3432,134.6,134.57,6.96709994]
[1726147171125,3.3433,134.59,134.57,3.62329994]
[1726147171323,11.43,134.62,134.56,11.43]
[1726147171839,3.3437,134.58,134.56,11.43]
[1726147172139,3.3437,134.58,134.56,15.05404302]
[1726147173141,3.3437,134.58,134.56,11.43]
[1726147173434,3.344,134.57,134.54,14.7745]
[1726147183758,3.3441,134.56,134.53,14.7747]
[1726147185337,11.43,134.55,134.5,11.86584729]
[1726147185634,11.43,134.55,134.48,20.17146834]
[1726147185829,3.3451,134.52,134.48,11.43]
[1726147186034,3.3451,134.52,134.49,11.43]
[1726147186234,3.3451,134.52,134.5,3.63363422]
[1726147187834,3.3449,134.53,134.5,3.63363422]
[1726147188339,2.8459,134.57,134.52,11.43]
[1726147189047,11.43,134.56,134.51,3.72880614]
[1726147189344,3.3446,134.54,134.51,3.3451]
[1726147193851,3.3448,134.53,134.5,18.57791319]
[1726147194239,3.3448,134.53,134.5,7.14791319]
[1726147194440,11.43,134.55,134.5,3.80251319]
[1726147194747,11.43,134.54,134.49,3.3456]
[1726147195039,3.3452,134.52,134.49,7.0644637]
[1726147196046,3.3449,134.53,134.5,3.3455]
[1726147199537,3.345,134.52,134.5,3.3455]
[1726147200854,3.3447,134.54,134.51,3.3453]
[1726147201046,11.43,134.56,134.5,11.43]
[1726147201642,3.3452,134.52,134.5,11.43]
[1726147201948,3.3452,134.52,134.49,7.0644637]
[1726147202138,11.43,134.56,134.48,11.43]
[1726147202339,11.43,134.56,134.48,15.21717329]
[1726147203753,3.3449,134.53,134.5,3.3455]
[1726147204248,3.3449,134.53,134.5,11.43]
[1726147204751,3.3446,134.54,134.51,3.3451]
[1726147205047,2.8459,134.57,134.51,11.43]
[1726147205048,14.2759,134.57,134.51,11.43]
[1726147205441,3.3443,134.55,134.52,3.3449]
[1726147206547,11.43,134.58,134.53,11.43]
[1726147207248,3.3439,134.57,134.54,3.3445]
[1726147207551,4.1445,134.62,134.54,3.3445]
[1726147207552,4.1445,134.62,134.55,3.64934876]
[1726147207743,15.5745,134.62,134.55,11.43]
[1726147207943,11.43,134.6,134.51,8.81811054]
[1726147208141,3.3439,134.57,134.54,3.3443]
[1726147208348,11.43,134.59,134.53,11.43]
[1726147209754,3.3436,134.58,134.53,11.43]
[1726147210457,3.3436,134.58,134.55,3.3441]
[1726147210659,3.3433,134.59,134.55,3.73894071]
[1726147210851,3.3433,134.59,134.56,3.344]
[1726147214662,3.3431,134.6,134.57,3.3437]
[1726147214969,2.7266,134.62,134.57,14.7737]
[1726147215151,2.7266,134.62,134.58,3.3435]
[1726147215152,3.3429,134.61,134.58,3.3435]
[1726147215951,3.3427,134.62,134.58,3.3435]
[1726147216662,3.3427,134.62,134.58,14.7735]
[1726147216961,3.3428,134.61,134.58,14.7735]
[1726147219156,3.3426,134.62,134.59,3.3431]
[1726147220560,11.43,134.63,134.58,3.3434]
[1726147221152,11.43,134.63,134.57,14.7737]
[1726147221364,11.43,134.61,134.55,15.16894071]
[1726147221558,11.43,134.61,134.55,11.43]
[1726147221753,3.3434,134.59,134.56,3.3439]
[1726147222158,3.3434,134.59,134.56,6.99756655]
[1726147222360,3.3434,134.59,134.57,3.3438]
[1726147223652,3.3434,134.59,134.56,18.42756655]
[1726147225462,3.3434,134.59,134.56,6.99756655]
[1726147232181,1.3865,134.65,134.58,11.43]
[1726147232476,1.3865,134.65,134.51,10.67745473]
[1726147232477,3.3424,134.63,134.6,3.3429]
[1726147232671,106.11434165,134.66,134.61,11.43]
[1726147233362,106.11434165,134.66,134.62,11.43]
[1726147233363,103.47534165,134.66,134.62,11.43]
[1726147233567,11.43,134.69,134.62,11.43]
[1726147233871,3.3421,134.64,134.61,14.7726]
[1726147234072,11.43,134.67,134.58,6.51908941]
[1726147234271,3.3422,134.64,134.61,3.3428]
[1726147235976,3.3422,134.64,134.6,3.3429]
[1726147236161,3.3422,134.64,134.6,14.7729]
[1726147236366,11.43,134.67,134.6,11.43]
[1726147237067,3.3421,134.64,134.61,3.3426]
[1726147239469,1.3916,134.7,134.62,14.7723]
[1726147239673,11.43,134.68,134.62,14.7723]
[1726147240778,3.3418,134.65,134.62,14.7723]
[1726147245476,11.43,134.68,134.62,14.7723]
[1726147245667,11.43,134.68,134.63,3.3422]
[1726147246479,3.3419,134.65,134.63,3.3422]
[1726147246680,3.3419,134.65,134.62,14.7724]
[1726147246881,3.3419,134.65,134.62,11.43]
[1726147247386,1.3916,134.7,134.63,11.43]
[1726147247579,12.8216,134.7,134.63,11.43]
[1726147247886,3.3416,134.66,134.63,14.7721]
[1726147248184,11.43,134.68,134.62,11.43]
[1726147249082,11.43,134.66,134.58,6.51908941]
[1726147249283,11.43,134.64,134.58,17.94908941]
[1726147249483,3.3427,134.62,134.59,3.3431]
[1726147249676,3.3427,134.62,134.58,17.94908941]
[1726147250386,3.3424,134.63,134.6,14.773]
[1726147251281,3.3422,134.64,134.6,14.773]
[1726147251479,11.43,134.67,134.61,11.43]
[1726147251680,11.43,134.68,134.62,11.43]
[1726147252282,11.43,134.68,134.62,14.7724]
[1726147252680,11.43,134.68,134.62,11.43]
[1726147253077,3.3422,134.64,134.62,11.43]
[1726147253481,11.43,134.67,134.61,11.43]
[1726147253993,3.3423,134.63,134.61,11.43]
[1726147254690,11.43,134.67,134.61,11.43]
[1726147254881,3.3421,134.64,134.61,14.7727]
[1726147255892,11.43,134.67,134.61,11.43]
[1726147256091,11.43,134.64,134.58,3.70558941]
[1726147256281,11.43,134.64,134.58,11.43]
[1726147256587,3.3429,134.61,134.59,3.70012775]
[1726147256787,3.3429,134.61,134.58,14.7734]
[1726147257176,11.43,134.64,134.58,15.09186195]
[1726147257381,11.43,134.64,134.59,3.3433]
[1726147257382,3.3426,134.62,134.59,3.3433]
[1726147257791,3.3428,134.61,134.58,18.43526195]
[1726147258693,3.3424,134.63,134.6,3.343]
[1726147258997,11.43,134.66,134.6,11.43]
[1726147259190,3.3422,134.64,134.61,3.3426]
[1726147259498,3.3422,134.64,134.62,3.72390222]
[1726147260391,11.43,134.68,134.62,3.72390222]
[1726147260593,11.43,134.68,134.6,11.43]
[1726147260790,3.3421,134.64,134.6,11.43]
[1726147260982,3.3421,134.64,134.61,3.3426]
[1726147261591,3.3421,134.64,134.6,18.49828713]
[1726147261992,3.3423,134.63,134.6,7.06828713]
[1726147262189,3.3423,134.63,134.6,18.49828713]
[1726147263900,3.3421,134.64,134.6,18.49828713]
[1726147265088,3.3421,134.64,134.61,3.3428]
[1726147266599,3.3423,134.63,134.6,18.49828713]
[1726147267298,3.3423,134.63,134.6,7.06828713]
[1726147267493,3.3423,134.63,134.6,18.49828713]
[1726147267901,3.3426,134.62,134.6,15.15538713]
[1726147268402,11.43,134.63,134.54,10.46080591]
[1726147268591,11.43,134.63,134.57,11.43]
[1726147268796,11.43,134.64,134.58,11.43]
[1726147269099,11.43,134.64,134.58,14.7733]
[1726147269288,2.6469,134.65,134.59,11.43]
[1726147269490,3.3426,134.62,134.6,3.74684202]
[1726147270293,3.3424,134.63,134.6,7.08984202]
[1726147270803,3.3426,134.62,134.6,3.74684202]
[1726147271896,2.6469,134.65,134.59,14.7731]
[1726147271897,3.3428,134.61,134.59,11.43]
[1726147272496,3.3428,134.61,134.6,3.69361886]
[1726147272699,3.3428,134.61,134.58,14.7734]
[1726147272900,3.3428,134.61,134.59,3.66018235]
[1726147274695,3.3431,134.6,134.58,11.43]
[1726147275202,3.3431,134.6,134.59,3.69287359]
[1726147275998,11.43,134.63,134.59,3.69287359]
[1726147275999,3.3429,134.61,134.59,3.69287359]
[1726147276809,3.343,134.6,134.59,3.69287359]
[1726147277699,3.3435,134.59,134.56,3.344]
[1726147278006,11.43,134.63,134.54,5.02694829]
[1726147278007,11.43,134.63,134.57,11.43]
[1726147278216,12.745,134.64,134.57,15.14841527]
[1726147278399,12.745,134.64,134.59,11.43]
[1726147278400,1.315,134.64,134.59,11.43]
[1726147279010,3.3427,134.62,134.59,14.7731]
[1726147280010,3.3428,134.61,134.59,11.43]
[1726147280202,12.745,134.64,134.57,15.14841527]
[1726147280400,11.43,134.63,134.57,11.43]
[1726147280605,3.3435,134.59,134.57,3.70466706]
[1726147280901,11.43,134.61,134.56,11.43]
[1726147281326,11.43,134.61,134.57,3.70838287]
[1726147281905,3.3435,134.58,134.57,3.70838287]
[1726147283106,3.3435,134.58,134.55,11.43]
[1726147283317,3.3438,134.57,134.56,3.70196952]
[1726147283615,3.3438,134.57,134.54,11.43]
[1726147283817,3.3438,134.57,134.55,6.13462079]
[1726147284011,3.3438,134.57,134.54,11.43]
[1726147284413,3.3438,134.57,134.55,3.67855815]
[1726147284918,1.315,134.64,134.5,9.2911832]
[1726147285117,1.315,134.64,134.51,6.13491397]
[1726147285118,11.43,134.56,134.51,6.13491397]
[1726147285313,11.43,134.58,134.52,6.13491397]
[1726147285506,11.43,134.58,134.51,16.45975955]
[1726147285713,11.43,134.58,134.52,12.67808982]
[1726147285907,14.1002,134.59,134.53,11.43]
[1726147286402,14.1002,134.59,134.52,3.345]
[1726147286604,11.43,134.57,134.53,6.13515239]
[1726147286809,11.43,134.57,134.51,11.43]
[1726147287322,11.43,134.56,134.49,5.03008122]
[1726147287519,11.43,134.54,134.5,6.13567424]
[1726147287717,11.43,134.56,134.49,11.43]
[1726147288016,3.345,134.53,134.5,12.67949723]
[1726147288215,11.43,134.56,134.49,14.7756]
[1726147288416,11.43,134.56,134.5,12.67951021]
[1726147288618,3.3451,134.52,134.49,14.7756]
[1726147288828,3.3451,134.52,134.5,6.13605992]
[1726147289120,3.3451,134.52,134.49,11.43]
[1726147289319,3.3451,134.52,134.5,6.13601663]
[1726147289520,3.3449,134.53,134.49,14.7757]
[1726147289722,3.3449,134.53,134.5,6.13601134]
[1726147289919,3.3449,134.53,134.49,14.7757]
[1726147290622,3.3449,134.53,134.5,3.3455]
[1726147291024,3.3445,134.54,134.49,11.43]
[1726147291225,3.3445,134.54,134.51,11.43]
[1726147292824,3.3445,134.54,134.51,14.7753]
[1726147294738,12.8285,134.58,134.51,11.43]
[1726147295019,12.8285,134.58,134.49,11.43]
[1726147295020,3.3448,134.53,134.49,11.43]
[1726147295223,11.43,134.55,134.49,11.43]
[1726147295425,11.43,134.55,134.49,14.7758]
[1726147295616,11.43,134.55,134.49,11.43]
[1726147296023,3.345,134.53,134.49,14.7757]
[1726147296520,3.345,134.53,134.49,14.7756]
[1726147296724,3.345,134.53,134.49,11.43]
[1726147297632,3.345,134.53,134.5,3.3455]
[1726147298216,3.345,134.53,134.5,14.7755]
[1726147299535,3.3446,134.54,134.51,3.3453]
[1726147302714,3.3444,134.55,134.52,11.43]
[1726147303320,3.3444,134.55,134.52,14.7749]
[1726147304224,12.8285,134.58,134.53,3.3447]
[1726147304225,3.3441,134.56,134.53,3.3447]
[1726147307035,1.3359,134.62,134.54,3.3444]
[1726147307225,1.3359,134.62,134.55,3.64860528]
[1726147307226,11.43,134.6,134.55,3.64860528]
[1726147307631,3.3439,134.57,134.55,3.64860528]
[1726147309128,3.3441,134.56,134.51,1.3454]
[1726147309336,3.3441,134.56,134.52,11.43]
[1726147310034,3.3441,134.56,134.52,14.7748]
[1726147310734,3.3441,134.56,134.53,3.3448]
[1726147313530,3.3443,134.55,134.52,14.7749]
[1726147313731,11.43,134.56,134.5,12.67712076]
[1726147314044,11.43,134.54,134.48,17.88767329]
[1726147314334,11.43,134.53,134.48,3.78717329]
[1726147316034,3.3453,134.51,134.48,3.78717329]
[1726147316629,11.43,134.55,134.49,11.43]
[1726147316838,2.6382,134.56,134.49,11.43]
[1726147317035,14.0682,134.56,134.5,11.43]
[1726147317338,3.3448,134.53,134.5,11.43]
[1726147317534,14.0682,134.56,134.5,11.43]
[1726147317930,3.3447,134.54,134.5,14.7755]
[1726147319038,3.3443,134.55,134.52,11.43]
[1726147319845,3.3441,134.56,134.52,14.775]
[1726147320140,3.3441,134.56,134.53,11.43]
[1726147320338,1.312,134.61,134.53,11.43]
[1726147320542,3.3437,134.58,134.53,11.43]
[1726147320745,11.43,134.6,134.53,11.43]
[1726147320945,11.43,134.59,134.53,14.7747]
[1726147321641,3.3439,134.57,134.53,14.7747]
[1726147323930,3.3436,134.58,134.54,14.7745]
[1726147324129,1.3968,134.62,134.57,11.43]
[1726147324328,1.3968,134.62,134.57,15.15500185]
[1726147324931,3.3432,134.6,134.57,15.15500185]
[1726147326238,3.3432,134.6,134.57,18.49870185]
[1726147327143,3.3428,134.61,134.57,18.49870185]
[1726147327736,3.3428,134.61,134.58,3.3435]
[1726147328133,3.3428,134.61,134.57,15.15500185]
[1726147328338,11.43,134.63,134.57,15.15500185]
[1726147328645,11.43,134.62,134.56,11.43]
[1726147328844,3.3434,134.59,134.56,15.14841557]
[1726147329528,3.3434,134.59,134.56,18.49241557]
[1726147329729,3.3434,134.59,134.56,15.14841557]
[1726147329945,11.43,134.6,134.56,3.71841557]
[1726147330139,11.43,134.6,134.54,4.0488]
[1726147330641,3.3439,134.57,134.54,5.998]
[1726147330846,3.3439,134.57,134.54,4.7062]
[1726147331029,11.43,134.6,134.54,1.3618]
[1726147331228,11.43,134.6,134.53,19.79650567]
[1726147331837,3.344,134.57,134.53,19.79650567]
[1726147332245,3.344,134.57,134.53,14.7746]
[1726147333032,3.344,134.57,134.54,3.3445]
[1726147333434,3.3436,134.58,134.55,11.43]
[1726147333640,3.3436,134.58,134.56,3.76384449]
[1726147334751,11.43,134.62,134.56,15.19384449]
[1726147334948,11.43,134.63,134.58,11.43]
[1726147335247,11.43,134.64,134.58,11.43]
[1726147335445,2.7176,134.65,134.59,11.43]
[1726147335740,2.7176,134.65,134.59,15.10231638]
[1726147335935,1.3757,134.65,134.59,15.10231638]
[1726147336340,3.3419,134.65,134.61,14.7727]
[1726147336538,12.8283,134.66,134.59,3.67231638]
[1726147336736,12.8283,134.66,134.6,11.43]
[1726147336945,3.3421,134.64,134.61,3.6804936]
[1726147338046,11.43,134.67,134.61,11.43]
[1726147338440,14.2514,134.69,134.63,11.43]
[1726147338642,3.3415,134.67,134.63,11.43]
[1726147338849,14.2514,134.69,134.63,11.43]
[1726147339255,3.3416,134.66,134.62,3.3424]
[1726147339557,14.2514,134.69,134.61,14.7727]
[1726147339558,11.43,134.67,134.61,14.7727]
[1726147340057,3.3419,134.65,134.61,14.7727]
[1726147340245,3.3419,134.65,134.61,18.45415341]
[1726147340847,11.43,134.67,134.61,3.68145341]
[1726147341152,11.43,134.67,134.6,14.7728]
[1726147341357,11.43,134.67,134.6,18.53153086]
[1726147341946,3.3422,134.64,134.6,18.53153086]
[1726147342343,11.43,134.67,134.61,3.3428]
[1726147342649,3.3419,134.65,134.61,3.3428]
[1726147343044,3.3419,134.65,134.62,11.43]
[1726147344445,3.3419,134.65,134.62,14.7725]
[1726147348343,3.3416,134.66,134.63,14.7723]
[1726147349244,3.3416,134.66,134.63,11.43]
[1726147349644,3.3416,134.66,134.63,15.16031043]
[1726147351043,3.3418,134.65,134.63,15.16031043]
[1726147353057,3.3417,134.66,134.63,15.16031043]
[1726147353352,14.2514,134.69,134.63,15.16031043]
[1726147353558,11.43,134.67,134.63,3.73031043]
[1726147353863,3.3419,134.65,134.63,3.73031043]
[1726147354053,11.43,134.67,134.63,3.73031043]
[1726147354256,3.3417,134.66,134.63,3.73031043]
[1726147354955,3.3418,134.65,134.63,3.73031043]
[1726147356246,3.3418,134.65,134.63,15.16031043]
[1726147356652,3.3418,134.65,134.63,3.73031043]
[1726147359057,2.8214,134.69,134.64,11.43]
[1726147359256,2.8214,134.69,134.57,6.51605584]
[1726147359565,14.2514,134.69,134.63,11.43]
[1726147360261,3.3419,134.65,134.63,11.43]
[1726147361048,3.3419,134.65,134.63,14.7723]
[1726147361266,3.3419,134.65,134.57,9.79730553]
[1726147361467,3.3419,134.65,134.63,11.43]
[1726147362254,3.342,134.64,134.6,11.43]
[1726147362460,11.43,134.65,134.57,3.68573837]
[1726147362665,11.43,134.65,134.58,11.43]
[1726147362969,11.43,134.65,134.58,15.06383106]
[1726147363268,11.43,134.66,134.59,14.7731]
[1726147363565,3.3424,134.63,134.59,14.7731]
[1726147363767,11.43,134.66,134.59,14.7731]
[1726147364150,3.3424,134.63,134.6,3.3429]
[1726147364467,14.2514,134.69,134.62,11.43]
[1726147364971,3.3418,134.65,134.62,14.7724]
[1726147365353,3.3418,134.65,134.62,11.43]
[1726147365558,3.3421,134.64,134.62,11.43]
[1726147366463,3.3421,134.64,134.61,3.3427]
[1726147366661,3.3421,134.64,134.62,11.43]
[1726147367764,3.3419,134.65,134.62,11.43]
[1726147368085,3.3419,134.65,134.62,14.7724]
[1726147368560,3.3416,134.66,134.63,11.43]
[1726147368968,3.3416,134.66,134.63,14.7722]
[1726147369561,3.3416,134.66,134.63,11.43]
[1726147370162,3.3416,134.66,134.63,14.7723]
[1726147370874,3.3414,134.67,134.64,11.43]
[1726147371064,3.3414,134.67,134.64,14.772]
[1726147373064,3.3415,134.66,134.64,14.772]
[1726147376773,3.3414,134.67,134.64,14.772]
[1726147377880,12.7642,134.7,134.65,3.3417]
[1726147378073,12.7642,134.7,134.66,3.77535101]
[1726147378468,1.3342,134.7,134.66,3.77535101]
[1726147379078,11.43,134.71,134.66,3.77535101]
[1726147379671,3.3412,134.68,134.66,3.77535101]
[1726147381180,3.3413,134.67,134.66,3.77535101]
[1726147382371,3.3413,134.67,134.64,14.7719]
[1726147383177,11.43,134.71,134.65,3.3417]
[1726147383178,3.3411,134.68,134.65,3.3417]
[1726147383377,3.3411,134.68,134.66,3.65743708]
[1726147386578,3.3409,134.69,134.67,11.43]
[1726147386879,12.8063,134.72,134.67,15.21890291]
[1726147387392,3.3409,134.69,134.67,3.78890291]
[1726147387579,3.3409,134.69,134.66,11.43]
[1726147387774,3.3411,134.68,134.67,3.6292144]
[1726147387980,1.3763,134.72,134.67,15.0592144]
[1726147388179,3.3407,134.7,134.67,14.7712]
[1726147388789,1.3763,134.72,134.68,3.7484181]
[1726147389683,3.3407,134.7,134.68,3.7484181]
[1726147389878,1.3763,134.72,134.67,14.7712]
[1726147390076,12.8063,134.72,134.67,11.43]
[1726147390282,1.3763,134.72,134.67,15.05215873]
[1726147390592,3.341,134.68,134.67,3.62215873]
[1726147390781,3.341,134.68,134.66,11.43]
[1726147391298,3.341,134.68,134.66,15.21332511]
[1726147403293,11.43,134.71,134.62,10.40346318]
[1726147403487,11.43,134.69,134.63,24.02978573]
[1726147403685,11.43,134.69,134.63,11.43]
[1726147404295,11.43,134.69,134.63,14.7721]
[1726147404693,11.43,134.69,134.65,11.43]
[1726147404895,3.3414,134.67,134.65,15.16170912]
[1726147408294,3.3414,134.67,134.65,11.43]
[1726147408921,3.3414,134.67,134.65,15.21695587]
[1726147409723,3.3414,134.67,134.65,11.43]
[1726147410130,3.3414,134.67,134.65,15.1351482]
[1726147410615,3.3414,134.67,134.65,11.43]
[1726147411214,3.3414,134.67,134.65,15.12289057]
[1726147411725,3.3414,134.67,134.65,18.46469057]
[1726147411937,3.3414,134.67,134.66,11.43]
[1726147413519,3.3414,134.67,134.65,11.43]
[1726147414333,3.3415,134.66,134.65,11.43]
[1726147414724,11.43,134.71,134.64,11.43]
[1726147415034,3.3417,134.66,134.64,11.43]
[1726147417343,3.3414,134.67,134.64,14.772]
[1726147417635,11.43,134.71,134.66,11.43]
[1726147418532,3.3412,134.68,134.66,11.43]
[1726147419936,1.3763,134.72,134.67,11.43]
[1726147420147,1.3763,134.72,134.68,11.43]
[1726147420527,3.3408,134.7,134.68,11.43]
[1726147421223,12.8063,134.72,134.66,11.43]
[1726147421838,3.3411,134.68,134.66,11.43]
[1726147422232,3.3411,134.68,134.66,14.7715]
[1726147422937,3.3409,134.69,134.66,14.7715]
[1726147423935,3.341,134.68,134.66,11.43]
[1726147428049,3.3413,134.67,134.65,11.43]
[1726147428343,12.8063,134.72,134.65,11.43]
[1726147428733,12.8063,134.72,134.65,15.16059325]
[1726147428930,3.3413,134.68,134.65,15.16059325]
[1726147429142,3.3413,134.68,134.64,3.3418]
[1726147429347,3.3413,134.68,134.65,24.0499796]
[1726147429540,3.3413,134.68,134.65,11.43]
[1726147430345,3.3413,134.68,134.65,15.10266248]
[1726147431148,3.3413,134.67,134.65,15.10266248]
[1726147431741,12.8063,134.72,134.66,11.43]
[1726147432139,1.3763,134.72,134.66,11.43]
[1726147432342,3.3407,134.7,134.68,11.43]
[1726147433844,3.3405,134.71,134.69,11.43]
[1726147434150,12.7441,134.76,134.7,11.43]
[1726147434453,14.1102,134.76,134.7,11.43]
[1726147435251,3.3403,134.72,134.7,11.43]
[1726147439554,3.3399,134.73,134.7,14.7705]
[1726147440343,3.3401,134.72,134.7,11.43]
[1726147440848,14.1102,134.76,134.7,11.43]
[1726147442056,3.3403,134.71,134.7,11.43]
[1726147443257,3.3405,134.7,134.69,11.43]
[1726147443455,11.43,134.73,134.68,11.43]
[1726147443854,3.3408,134.69,134.68,11.43]
[1726147444847,3.3408,134.69,134.68,24.02046068]
[1726147445045,3.3408,134.69,134.68,11.43]
[1726147445242,3.3411,134.68,134.66,6.45445582]
[1726147445549,3.3411,134.68,134.67,24.02427993]
[1726147446049,3.3411,134.68,134.67,12.59427993]
[1726147446357,3.3416,134.66,134.64,11.43]
[1726147446559,3.3416,134.66,134.65,23.00422249]
[1726147447257,3.3414,134.67,134.65,23.00422249]
[1726147447454,3.3414,134.67,134.66,12.60056889]
[1726147448642,3.3414,134.67,134.65,11.43]
[1726147448846,3.3414,134.67,134.66,6.49913696]
[1726147449146,3.3414,134.67,134.66,12.59437794]
[1726147451361,3.3414,134.67,134.65,11.43]
[1726147451553,3.3415,134.66,134.65,11.43]
[1726147451751,3.3415,134.66,134.65,24.03011171]
[1726147452068,11.43,134.7,134.65,11.43]
[1726147452255,11.43,134.72,134.65,24.03009031]
[1726147452449,11.43,134.72,134.65,11.43]
[1726147452859,3.3412,134.68,134.65,11.43]
[1726147453048,3.3412,134.68,134.66,6.0972942]
[1726147453243,3.341,134.69,134.66,11.43]
[1726147453458,11.43,134.72,134.66,11.43]
[1726147453849,3.3411,134.68,134.66,11.43]
[1726147455262,11.43,134.73,134.67,11.43]
[1726147455561,11.43,134.73,134.66,3.3415]
[1726147455761,11.43,134.73,134.67,11.43]
[1726147455762,3.341,134.69,134.67,11.43]
[1726147457759,3.3412,134.68,134.64,3.76206742]
[1726147457958,11.43,134.72,134.65,34.41737156]
[1726147458161,11.43,134.72,134.66,12.59130701]
[1726147458363,3.3413,134.68,134.65,11.43]
[1726147458566,3.3413,134.68,134.66,12.59131599]
[1726147458863,3.3413,134.68,134.65,18.50016108]
[1726147459160,3.3413,134.68,134.66,6.0933669]
[1726147459363,3.3413,134.68,134.65,18.50016108]
[1726147459563,3.3413,134.68,134.66,12.59052504]
[1726147459768,3.3413,134.68,134.65,18.50016108]
[1726147459956,3.3413,134.68,134.66,12.59069739]
[1726147460153,3.3413,134.68,134.65,18.50016108]
[1726147460350,3.3413,134.68,134.66,12.59073285]
[1726147460551,3.3413,134.68,134.65,18.50016108]
[1726147460862,3.3413,134.67,134.66,12.59073192]
[1726147461868,3.3412,134.68,134.66,12.59073192]
[1726147462066,1.3141,134.76,134.66,11.43]
[1726147462269,11.43,134.73,134.66,11.43]
[1726147462867,3.3408,134.69,134.67,6.09347949]
[1726147463064,3.3408,134.69,134.66,14.7714]
[1726147463261,3.3408,134.69,134.67,6.09445303]
[1726147463451,3.3408,134.69,134.66,14.7714]
[1726147463653,3.3408,134.69,134.67,6.09399018]
[1726147463966,3.3408,134.69,134.66,14.7714]
[1726147464166,3.3408,134.69,134.67,6.09552184]
[1726147464371,3.3408,134.69,134.66,14.7714]
[1726147464566,3.3408,134.69,134.67,6.09545241]
[1726147464767,3.3408,134.69,134.66,14.7714]
[1726147465066,3.3408,134.69,134.67,6.09544927]
[1726147465370,3.3408,134.69,134.66,14.7714]
[1726147466177,11.43,134.73,134.66,11.43]
[1726147466178,3.3411,134.68,134.66,11.43]
[1726147467364,11.43,134.73,134.66,11.43]
[1726147467562,11.43,134.73,134.67,12.59574815]
[1726147467758,11.43,134.73,134.66,11.43]
[1726147467971,1.29,134.75,134.67,12.59818914]
[1726147468161,11.43,134.73,134.66,14.7714]
[1726147468470,3.3406,134.7,134.67,15.93945422]
[1726147468768,3.3406,134.7,134.67,3.3411]
[1726147469066,3.3408,134.69,134.66,14.7714]
[1726147469261,3.3408,134.69,134.67,12.59514162]
[1726147469463,3.3408,134.69,134.66,14.7714]
[1726147469660,11.43,134.73,134.67,12.59507249]
[1726147469868,11.43,134.73,134.67,14.7712]
[1726147470460,3.3405,134.71,134.69,11.43]
[1726147471269,3.3405,134.7,134.67,14.7712]
[1726147471474,11.43,134.74,134.67,11.43]
[1726147471771,3.3409,134.69,134.66,14.7714]
[1726147472560,3.3409,134.69,134.67,6.09824058]
[1726147472771,3.3409,134.69,134.66,11.43]
[1726147473373,3.3411,134.68,134.66,11.43]
[1726147474066,1.3935,134.75,134.64,11.1664117]
[1726147474067,3.3413,134.67,134.64,11.1664117]
[1726147474267,11.43,134.71,134.65,12.59510231]
[1726147474572,11.43,134.71,134.64,22.5964117]
[1726147474573,3.3412,134.68,134.66,12.59510231]
[1726147474874,3.3412,134.68,134.64,22.5964117]
[1726147475075,3.3412,134.68,134.65,22.99238571]
[1726147475276,3.3412,134.68,134.66,12.59403568]
[1726147475465,3.3412,134.68,134.64,22.5964117]
[1726147475666,11.43,134.71,134.65,16.89583948]